bitfinex/quotes_BTCUSD_20221001
["timestamp","ask_amount","ask_price","bid_price","bid_amount"]
[1664635812187,1.44284847,19314.0,19313.0,0.45049383]
[1664635812394,1.44284847,19314.0,19313.0,0.37149383]
[1664635813042,1.44284847,19314.0,19313.0,0.45049383]
[1664635814203,1.44284847,19314.0,19313.0,0.37149383]
[1664635815081,1.44284847,19314.0,19313.0,0.45049383]
[1664635815299,1.43260106,19314.0,19313.0,0.45049383]
[1664635816235,1.07470806,19314.0,19313.0,0.45049383]
[1664635816658,1.07470806,19314.0,19313.0,0.37149383]
[1664635816900,1.43260106,19314.0,19313.0,0.37149383]
[1664635817136,1.43240622,19314.0,19313.0,0.45049383]
[1664635818232,1.07451322,19314.0,19313.0,0.37149383]
[1664635818708,1.43240622,19314.0,19313.0,0.37149383]
[1664635819157,1.43240622,19314.0,19313.0,0.45049383]
[1664635819595,1.07451322,19314.0,19313.0,0.45049383]
[1664635820078,1.43240622,19314.0,19313.0,0.45049383]
[1664635820301,1.43240622,19314.0,19313.0,0.37149383]
[1664635821115,1.43240622,19314.0,19313.0,0.45049383]
[1664635822448,1.43240622,19314.0,19313.0,0.37149383]
[1664635823118,1.43240622,19314.0,19313.0,0.45049383]
[1664635824413,1.43240622,19314.0,19313.0,0.37093383]
[1664635825071,1.43240622,19314.0,19313.0,0.44993383]
[1664635825778,1.07451322,19314.0,19313.0,0.44993383]
[1664635825990,1.43240622,19314.0,19313.0,0.44993383]
[1664635826171,1.43240622,19314.0,19313.0,0.37093383]
[1664635827025,1.43240622,19314.0,19313.0,0.44993383]
[1664635827237,1.07451322,19314.0,19313.0,0.44993383]
[1664635827776,1.43240622,19314.0,19313.0,0.44993383]
[1664635828341,1.43240622,19314.0,19313.0,0.37093383]
[1664635829068,1.43240622,19314.0,19313.0,0.44993383]
[1664635830439,1.07451322,19314.0,19313.0,0.37093383]
[1664635831092,1.43240622,19314.0,19313.0,0.44993383]
[1664635832301,1.43240622,19314.0,19313.0,0.37093383]
[1664635833099,1.43240622,19314.0,19313.0,0.44993383]
[1664635834351,1.43240622,19314.0,19313.0,0.37093383]
[1664635835132,1.43240622,19314.0,19313.0,0.44993383]
[1664635835364,1.43234618,19314.0,19313.0,0.44993383]
[1664635835801,1.07445318,19314.0,19313.0,0.44993383]
[1664635836220,1.43234618,19314.0,19313.0,0.37093383]
[1664635836482,1.07445318,19314.0,19313.0,0.37093383]
[1664635836693,1.43234618,19314.0,19313.0,0.37093383]
[1664635837195,1.43234618,19314.0,19313.0,0.44993383]
[1664635837739,1.52279008,19314.0,19313.0,0.44993383]
[1664635837969,1.43234618,19314.0,19313.0,0.44993383]
[1664635838404,1.43234618,19314.0,19313.0,0.37093383]
[1664635838903,1.88068308,19314.0,19313.0,0.37093383]
[1664635839122,2.22124686,19314.0,19313.0,0.44993383]
[1664635839358,1.77290996,19314.0,19313.0,0.44993383]
[1664635839793,1.77290996,19314.0,19313.0,0.4535265]
[1664635840230,2.22124686,19314.0,19313.0,0.3745265]
[1664635840440,1.77290996,19314.0,19313.0,0.3745265]
[1664635840677,1.07445318,19314.0,19313.0,0.3745265]
[1664635841113,1.43234618,19314.0,19313.0,0.4535265]
[1664635842357,1.43234618,19314.0,19313.0,0.3745265]
[1664635842902,1.43234618,19314.0,19313.0,0.37093383]
[1664635843112,1.43234618,19314.0,19313.0,0.44993383]
[1664635844433,1.43234618,19314.0,19313.0,0.37093383]
[1664635845220,1.43234618,19314.0,19313.0,0.44993383]
[1664635846296,1.43234618,19314.0,19313.0,0.37093383]
[1664635847272,1.43234618,19314.0,19313.0,0.44993383]
[1664635847497,1.76853857,19314.0,19313.0,0.44993383]
[1664635847716,2.21687547,19314.0,19313.0,0.44993383]
[1664635847914,1.76853857,19314.0,19313.0,0.44993383]
[1664635848133,1.76853857,19314.0,19313.0,0.45332864]
[1664635848481,2.27756893,19314.0,19313.0,0.37432864]
[1664635848701,2.54595902,19314.0,19313.0,0.24480764]
[1664635849147,2.62681549,19314.0,19313.0,0.24480764]
[1664635849373,2.62681549,19314.0,19313.0,0.32380764]
[1664635849823,2.58633622,19314.0,19313.0,0.32380764]
[1664635850039,2.62681549,19314.0,19313.0,0.32380764]
[1664635850300,2.58633643,19314.0,19313.0,0.32380764]
[1664635850500,2.58633643,19314.0,19313.0,0.24480764]
[1664635851196,2.58633643,19314.0,19313.0,0.32380764]
[1664635852734,2.58633643,19314.0,19313.0,0.24480764]
[1664635853274,2.58633643,19314.0,19313.0,0.32380764]
[1664635853397,2.62681549,19314.0,19313.0,0.32380764]
[1664635854302,2.62681549,19314.0,19313.0,0.24480764]
[1664635854539,2.54589088,19314.0,19313.0,0.24480764]
[1664635854773,2.58632972,19314.0,19313.0,0.24480764]
[1664635855314,2.58632972,19314.0,19313.0,0.32380764]
[1664635856411,2.58632972,19314.0,19313.0,0.24480764]
[1664635857186,2.58632972,19314.0,19313.0,0.32380764]
[1664635858467,2.58632972,19314.0,19313.0,0.24480764]
[1664635858736,2.58632972,19314.0,19313.0,0.24141283]
[1664635858945,2.58632778,19314.0,19313.0,0.24141283]
[1664635859236,2.58632778,19314.0,19313.0,0.32041283]
[1664635859880,2.16774132,19314.0,19313.0,0.32041283]
[1664635860119,2.52563432,19314.0,19313.0,0.32029619]
[1664635860581,2.03686052,19314.0,19313.0,0.24129619]
[1664635860794,2.07729742,19314.0,19313.0,0.24129619]
[1664635861014,2.52563432,19314.0,19313.0,0.24129619]
[1664635861243,2.52563432,19314.0,19313.0,0.19165996]
[1664635861681,2.58632778,19314.0,19313.0,0.32118096]
[1664635861948,2.52563432,19314.0,19313.0,0.32118096]
[1664635862384,2.03686052,19314.0,19313.0,0.32118096]
[1664635862601,2.48519742,19314.0,19313.0,0.24218096]
[1664635862828,2.03686052,19314.0,19313.0,0.24218096]
[1664635863300,2.03686052,19314.0,19313.0,0.32118096]
[1664635864310,1.67896752,19314.0,19313.0,0.32118096]
[1664635864530,2.03686052,19314.0,19313.0,0.24218096]
[1664635864754,1.74113043,19314.0,19313.0,0.24218096]
[1664635864978,2.18946733,19314.0,19313.0,0.24218096]
[1664635865194,1.74113043,19314.0,19313.0,0.32118096]
[1664635866582,2.18946733,19314.0,19313.0,0.24218096]
[1664635867034,2.32995377,19314.0,19313.0,0.24218096]
[1664635867252,1.88161687,19314.0,19313.0,0.32110605]
[1664635867472,2.32995377,19314.0,19313.0,0.32110605]
[1664635867929,1.88161687,19314.0,19313.0,0.32110605]
[1664635868177,1.8007604,19314.0,19313.0,0.32110605]
[1664635868621,1.8007604,19314.0,19313.0,0.24210605]
[1664635868766,1.4428674,19314.0,19313.0,0.24210605]
[1664635869219,1.8007604,19314.0,19313.0,0.32110605]
[1664635870510,1.8007604,19314.0,19313.0,0.24210605]
[1664635870741,1.30238096,19314.0,19313.0,0.24210605]
[1664635870940,1.66027396,19314.0,19313.0,0.24210605]
[1664635871149,1.66027396,19314.0,19313.0,0.32110605]
[1664635871699,1.00238096,19314.0,19313.0,0.32110605]
[1664635871855,0.77445318,19314.0,19313.0,0.32110605]
[1664635872512,0.77445318,19314.0,19313.0,0.24210605]
[1664635872726,0.77445318,19314.0,19313.0,0.29210605]
[1664635872971,0.77445318,19314.0,19313.0,0.24210605]
[1664635873219,1.13234618,19314.0,19313.0,0.32110605]
[1664635873422,1.43234618,19314.0,19313.0,0.32110605]
[1664635873819,0.77445318,19314.0,19313.0,0.32110605]
[1664635874562,0.77445318,19314.0,19313.0,0.24210605]
[1664635874966,1.13234618,19314.0,19313.0,0.24210605]
[1664635875146,1.07445318,19314.0,19313.0,0.24210605]
[1664635875360,1.07445318,19314.0,19313.0,0.32110605]
[1664635875601,1.43234618,19314.0,19313.0,0.32110605]
[1664635875963,1.07445318,19314.0,19313.0,0.32110605]
[1664635876413,1.07445318,19314.0,19313.0,0.24210605]
[1664635877382,1.07445318,19314.0,19313.0,0.32110605]
[1664635877602,0.56272174,19314.0,19313.0,0.32110605]
[1664635878701,0.56272174,19314.0,19313.0,0.24210605]
[1664635879373,0.92061474,19314.0,19313.0,0.32110605]
[1664635879612,0.56272174,19314.0,19313.0,0.32110605]
[1664635880705,0.56272174,19314.0,19313.0,0.24210605]
[1664635881355,0.62061474,19314.0,19313.0,0.37110605]
[1664635881577,0.26272174,19314.0,19313.0,0.37110605]
[1664635882485,0.26272174,19314.0,19313.0,0.29210605]
[1664635882702,0.26272174,19314.0,19313.0,0.24210605]
[1664635883293,0.26272174,19314.0,19313.0,0.32110605]
[1664635883955,0.62061474,19314.0,19313.0,0.32110605]
[1664635884165,0.26272174,19314.0,19313.0,0.32110605]
[1664635884505,0.26272174,19314.0,19313.0,0.24210605]
[1664635885373,0.26272174,19314.0,19313.0,0.32110605]
[1664635886258,0.62061474,19314.0,19313.0,0.32110605]
[1664635886428,0.56272174,19314.0,19313.0,0.24210605]
[1664635887281,0.56272174,19314.0,19313.0,0.32110605]
[1664635887893,0.92061474,19314.0,19313.0,0.32110605]
[1664635888533,0.56272174,19314.0,19313.0,0.24210605]
[1664635889205,0.56272174,19314.0,19313.0,0.32110605]
[1664635890392,0.92061474,19314.0,19313.0,0.32110605]
[1664635890611,0.92061474,19314.0,19313.0,0.24210605]
[1664635890835,0.56272174,19314.0,19313.0,0.24210605]
[1664635891516,0.56272174,19314.0,19313.0,0.32110605]
[1664635891964,0.26272174,19314.0,19313.0,0.32110605]
[1664635892178,0.56272174,19314.0,19313.0,0.32110605]
[1664635892668,0.56272174,19314.0,19313.0,0.24210605]
[1664635893324,0.56272174,19314.0,19313.0,0.32110605]
[1664635893750,0.26272174,19314.0,19313.0,0.32110605]
[1664635893987,0.56272174,19314.0,19313.0,0.32110605]
[1664635894429,0.26272174,19314.0,19313.0,0.32110605]
[1664635894666,0.26272174,19314.0,19313.0,0.24210605]
[1664635894906,0.92061474,19314.0,19313.0,0.24210605]
[1664635895322,0.56272174,19314.0,19313.0,0.32110605]
[1664635895730,0.19355334,19314.0,19313.0,0.32110605]
[1664635896397,0.19355334,19314.0,19313.0,0.37110605]
[1664635896583,0.19355334,19314.0,19313.0,0.24210605]
[1664635896792,0.19355334,19314.0,19313.0,0.29210605]
[1664635897291,0.19355334,19314.0,19313.0,0.37110605]
[1664635897747,0.19355334,19314.0,19313.0,0.32110605]
[1664635898709,0.19355334,19314.0,19313.0,0.24210605]
[1664635899365,0.19355334,19314.0,19313.0,0.32110605]
[1664635900449,0.19355334,19314.0,19313.0,0.37110605]
[1664635900658,0.19355334,19314.0,19313.0,0.29210605]
[1664635901075,0.49355334,19314.0,19313.0,0.24210605]
[1664635901311,0.49355334,19314.0,19313.0,0.32110605]
[1664635902906,0.49355334,19314.0,19313.0,0.24210605]
[1664635903338,0.49355334,19314.0,19313.0,0.32110605]
[1664635904588,0.85144634,19314.0,19313.0,0.24210605]
[1664635905083,0.49355334,19314.0,19313.0,0.24210605]
[1664635905293,0.49355334,19314.0,19313.0,0.32110605]
[1664635905741,0.6609415,19314.0,19313.0,0.32110605]
[1664635906177,0.3030485,19314.0,19313.0,0.32110605]
[1664635906633,0.3030485,19314.0,19313.0,0.24210605]
[1664635907088,0.6609415,19314.0,19313.0,0.24210605]
[1664635907314,0.3030485,19314.0,19313.0,0.24210605]
[1664635907544,0.3030485,19314.0,19313.0,0.32110605]
[1664635908350,0.6609415,19314.0,19313.0,0.32110605]
[1664635908560,0.6609415,19314.0,19313.0,0.24210605]
[1664635908782,1.31071672,19314.0,19313.0,0.24210605]
[1664635908997,0.74983926,19314.0,19313.0,0.24210605]
[1664635909444,0.74983926,19314.0,19313.0,0.32110605]
[1664635909925,0.6609415,19314.0,19313.0,0.32110605]
[1664635910184,0.3030485,19314.0,19313.0,0.32110605]
[1664635910380,1.10773226,19314.0,19313.0,0.32110605]
[1664635910637,0.6609415,19314.0,19313.0,0.32110605]
[1664635910846,1.10773226,19314.0,19313.0,0.32110605]
[1664635911156,0.3030485,19314.0,19313.0,0.32110605]
[1664635911378,1.17267294,19314.0,19313.0,0.40010605]
[1664635911604,0.81477994,19314.0,19313.0,0.40010605]
[1664635911815,0.81477994,19314.0,19313.0,0.24210605]
[1664635912251,1.17267294,19314.0,19313.0,0.24210605]
[1664635913037,0.81477994,19314.0,19313.0,0.24210605]
[1664635913401,0.81477994,19314.0,19313.0,0.32110605]
[1664635913621,1.17267294,19314.0,19313.0,0.32110605]
[1664635914991,1.17267294,19314.0,19313.0,0.24210605]
[1664635914992,1.36267294,19314.0,19313.0,0.24210605]
[1664635915249,1.00477994,19314.0,19313.0,0.24210605]
[1664635915487,1.40122256,19314.0,19313.0,0.32110605]
[1664635916203,1.00477994,19314.0,19313.0,0.32110605]
[1664635916441,1.36267294,19314.0,19313.0,0.32110605]
[1664635916660,1.36267294,19314.0,19313.0,0.24210605]
[1664635917315,1.00477994,19314.0,19313.0,0.32110605]
[1664635917546,1.36267294,19314.0,19313.0,0.32110605]
[1664635918809,1.00477994,19314.0,19313.0,0.24210605]
[1664635918994,1.36267294,19314.0,19313.0,0.24210605]
[1664635919206,1.00477994,19314.0,19313.0,0.24204328]
[1664635919448,1.36267294,19314.0,19313.0,0.32104328]
[1664635919772,1.41550469,19314.0,19313.0,0.32104328]
[1664635920606,1.41550469,19314.0,19313.0,0.24204328]
[1664635920811,1.45594159,19314.0,19313.0,0.24204328]
[1664635921248,1.45594159,19314.0,19312.0,0.14598749]
[1664635921249,1.807893,19313.0,19312.0,0.14598749]
[1664635921459,2.80045115,19313.0,19312.0,0.14598749]
[1664635921672,1.46114461,19313.0,19312.0,0.14598749]
[1664635921917,1.50155349,19313.0,19312.0,0.14598749]
[1664635922074,1.40043503,19313.0,19312.0,0.14598749]
[1664635923427,1.40043503,19313.0,19312.0,0.22498749]
[1664635923650,1.46112849,19313.0,19312.0,0.22498749]
[1664635924077,1.35043503,19313.0,19312.0,0.22498749]
[1664635924684,1.41112849,19313.0,19312.0,0.14598749]
[1664635925657,1.41112849,19313.0,19312.0,0.22498749]
[1664635926737,1.41112849,19313.0,19312.0,0.14598749]
[1664635926935,1.41112849,19313.0,19312.0,0.01646049]
[1664635927173,1.41112849,19313.0,19310.0,0.129538]
[1664635927174,0.05,19311.0,19310.0,0.129538]
[1664635927508,1.21962444,19311.0,19310.0,0.129538]
[1664635927942,0.86173144,19311.0,19310.0,0.129538]
[1664635928170,1.21962444,19311.0,19310.0,0.129538]
[1664635928387,1.53309137,19311.0,19310.0,0.129538]
[1664635929489,1.53309137,19311.0,19310.0,0.208538]
[1664635930883,1.53309137,19311.0,19310.0,0.129538]
[1664635931440,1.53309137,19311.0,19310.0,0.208538]
[1664635932572,1.48309137,19311.0,19310.0,0.208538]
[1664635932776,1.48309137,19311.0,19310.0,0.129538]
[1664635933543,1.48309137,19311.0,19310.0,0.208538]
[1664635934971,1.48309137,19311.0,19310.0,0.129538]
[1664635935513,1.48309137,19311.0,19310.0,0.208538]
[1664635936835,1.48309137,19311.0,19310.0,0.129538]
[1664635937706,1.48309137,19311.0,19310.0,0.208538]
[1664635938887,1.48309137,19311.0,19310.0,0.129538]
[1664635939466,1.48309137,19311.0,19310.0,0.208538]
[1664635940860,1.48309137,19311.0,19310.0,0.129538]
[1664635941500,1.47889835,19311.0,19310.0,0.129538]
[1664635941723,1.47889835,19311.0,19310.0,0.208538]
[1664635943301,1.47889835,19311.0,19310.0,0.129538]
[1664635943537,1.47889835,19311.0,19310.0,0.208538]
[1664635944886,1.47889835,19311.0,19310.0,0.129538]
[1664635945539,1.47889835,19311.0,19310.0,0.208538]
[1664635945816,1.12100535,19311.0,19310.0,0.208538]
[1664635946027,1.47889835,19311.0,19310.0,0.208538]
[1664635946926,1.47889835,19311.0,19310.0,0.129538]
[1664635947686,1.47889835,19311.0,19310.0,0.208538]
[1664635948918,1.47889835,19311.0,19310.0,0.129538]
[1664635949129,1.51846609,19311.0,19310.0,0.129538]
[1664635949442,0.84710616,19311.0,19310.0,0.129538]
[1664635949824,1.20499916,19311.0,19310.0,0.208538]
[1664635950268,0.84710616,19311.0,19310.0,0.208538]
[1664635950500,1.20499916,19311.0,19310.0,0.208538]
[1664635950935,1.20499916,19311.0,19310.0,0.129538]
[1664635951425,0.90919218,19311.0,19310.0,0.129538]
[1664635951649,0.51173144,19311.0,19310.0,0.65306504]
[1664635951892,0.51173144,19311.0,19310.0,0.208538]
[1664635952566,0.51173144,19311.0,19310.0,0.258538]
[1664635952793,0.51173144,19311.0,19310.0,0.179538]
[1664635953683,0.51173144,19311.0,19310.0,0.258538]
[1664635954153,0.51173144,19312.0,19310.0,0.258538]
[1664635954375,0.51173144,19312.0,19310.0,0.388078]
[1664635954589,0.90009744,19312.0,19310.0,0.388078]
[1664635954815,0.90009744,19312.0,19310.0,0.309078]
[1664635955695,0.90009744,19312.0,19310.0,0.388078]
[1664635956855,0.90009744,19312.0,19310.0,0.309078]
[1664635957587,0.90009744,19312.0,19310.0,0.388078]
[1664635958715,0.90009744,19312.0,19311.0,0.06103246]
[1664635958716,0.64118744,19312.0,19311.0,0.06103246]
[1664635958934,0.51173144,19312.0,19311.0,0.45061247]
[1664635959155,0.51173144,19312.0,19311.0,0.11103246]
[1664635959585,0.51173144,19312.0,19311.0,0.19003246]
[1664635960930,0.1930485,19314.0,19312.0,0.06103246]
[1664635961213,0.357893,19313.0,19311.0,0.77653615]
[1664635961434,0.70477994,19314.0,19312.0,0.40054567]
[1664635961435,0.83421994,19314.0,19312.0,0.40054567]
[1664635961661,0.83421994,19314.0,19312.0,0.47954567]
[1664635961887,0.83421994,19314.0,19312.0,0.14003246]
[1664635962767,0.83421994,19314.0,19312.0,0.39908046]
[1664635962986,0.83421994,19314.0,19312.0,0.32008046]
[1664635963434,0.83421994,19314.0,19312.0,0.259048]
[1664635963687,0.357893,19313.0,19312.0,0.338048]
[1664635963901,0.96365894,19314.0,19312.0,0.389838]
[1664635964103,1.09310194,19314.0,19312.0,0.389838]
[1664635964534,0.3,19313.0,19312.0,0.389838]
[1664635965012,0.3,19313.0,19312.0,0.310838]
[1664635965267,1.09310194,19314.0,19312.0,0.360838]
[1664635965402,0.3,19313.0,19312.0,0.360838]
[1664635965640,0.3,19313.0,19312.0,0.88436504]
[1664635965820,0.1930485,19314.0,19312.0,0.88436504]
[1664635966033,0.1930485,19314.0,19312.0,0.439838]
[1664635966034,0.4930485,19314.0,19312.0,0.439838]
[1664635966306,0.6224895,19314.0,19312.0,0.439838]
[1664635966771,0.6224895,19314.0,19312.0,0.360838]
[1664635967482,0.3224895,19314.0,19313.0,0.06103246]
[1664635967704,0.6224895,19314.0,19313.0,0.06103246]
[1664635967940,0.6224895,19314.0,19312.0,0.439838]
[1664635968697,0.6224895,19314.0,19313.0,0.06103246]
[1664635968927,0.6224895,19314.0,19312.0,0.360838]
[1664635969145,0.6224895,19314.0,19312.0,0.310838]
[1664635969373,0.657893,19313.0,19312.0,0.310838]
[1664635969600,0.6224895,19314.0,19312.0,0.389838]
[1664635969829,0.3,19313.0,19312.0,0.389838]
[1664635971034,0.3,19313.0,19312.0,0.310838]
[1664635971583,0.3,19313.0,19312.0,0.389838]
[1664635973066,0.3,19313.0,19312.0,0.360838]
[1664635973887,0.3,19313.0,19312.0,0.439838]
[1664635974625,0.3,19313.0,19312.0,0.389838]
[1664635974839,0.73308595,19313.0,19312.0,0.259048]
[1664635975277,0.37519295,19313.0,19312.0,0.259048]
[1664635975715,1.24481739,19313.0,19312.0,0.338048]
[1664635975929,1.24463259,19313.0,19312.0,0.338048]
[1664635976353,0.88673959,19313.0,19312.0,0.338048]
[1664635976837,1.24463259,19313.0,19312.0,0.259048]
[1664635977050,0.88673959,19313.0,19312.0,0.259048]
[1664635977694,0.88673959,19313.0,19312.0,0.338048]
[1664635979005,0.88673959,19313.0,19312.0,0.259048]
[1664635979664,0.88673959,19313.0,19312.0,0.338048]
[1664635980996,0.88673959,19313.0,19312.0,0.259048]
[1664635981742,0.88673959,19313.0,19312.0,0.338048]
[1664635982308,1.24463259,19313.0,19312.0,0.338048]
[1664635982790,0.88673959,19313.0,19312.0,0.338048]
[1664635982981,0.88673959,19313.0,19312.0,0.259048]
[1664635983623,0.88673959,19313.0,19312.0,0.338048]
[1664635984204,1.24463259,19313.0,19312.0,0.338048]
[1664635984429,0.88673959,19313.0,19312.0,0.338048]
[1664635985087,0.88673959,19313.0,19312.0,0.259048]
[1664635985758,0.88673959,19313.0,19312.0,0.338048]
[1664635987041,0.88673959,19313.0,19312.0,0.259048]
[1664635987284,1.24463259,19313.0,19312.0,0.259048]
[1664635987752,0.88673959,19313.0,19312.0,0.338048]
[1664635988670,1.24463259,19313.0,19312.0,0.338048]
[1664635988888,0.88673959,19313.0,19312.0,0.338048]
[1664635989109,0.9253739,19313.0,19312.0,0.259048]
[1664635989373,0.55036575,19313.0,19312.0,0.259048]
[1664635989808,0.55036575,19313.0,19312.0,0.338048]
[1664635991127,0.55036575,19313.0,19312.0,0.259048]
[1664635991334,0.85036575,19313.0,19312.0,0.259048]
[1664635991703,0.85036575,19313.0,19312.0,0.338048]
[1664635992985,1.20325875,19313.0,19312.0,0.259048]
[1664635993518,0.84536575,19313.0,19312.0,0.259048]
[1664635993729,0.84536575,19313.0,19312.0,0.338048]
[1664635994966,0.84536575,19313.0,19312.0,0.259048]
[1664635995327,1.20325875,19313.0,19312.0,0.259048]
[1664635995590,0.84536575,19313.0,19312.0,0.259048]
[1664635995847,0.84536575,19313.0,19312.0,0.338048]
[1664635996727,0.80673144,19313.0,19312.0,0.338048]
[1664635996956,0.80673144,19313.0,19312.0,0.259048]
[1664635997812,0.80673144,19313.0,19312.0,0.338048]
[1664635998241,1.16462444,19313.0,19312.0,0.338048]
[1664635998974,0.80673144,19313.0,19312.0,0.259048]
[1664635999901,0.80673144,19313.0,19312.0,0.338048]
[1664636001302,0.80673144,19313.0,19312.0,0.259048]
[1664636001932,0.80673144,19313.0,19312.0,0.338048]
[1664636003076,0.80673144,19313.0,19312.0,0.259048]
[1664636003746,0.80673144,19313.0,19312.0,0.338048]
[1664636004393,0.50673144,19313.0,19312.0,0.388048]
[1664636005305,0.50673144,19313.0,19312.0,0.309048]
[1664636005944,0.80673144,19313.0,19312.0,0.338048]
[1664636007011,0.80673144,19313.0,19312.0,0.259048]
[1664636007815,0.80673144,19313.0,19312.0,0.338048]
[1664636008301,1.16462444,19313.0,19312.0,0.338048]
[1664636008753,0.80673144,19313.0,19312.0,0.338048]
[1664636009171,0.80673144,19313.0,19312.0,0.259048]
[1664636009831,0.80673144,19313.0,19312.0,0.338048]
[1664636011470,0.80673144,19313.0,19312.0,0.259048]
[1664636011914,0.80673144,19313.0,19312.0,0.338048]
[1664636013060,0.80673144,19313.0,19312.0,0.259048]
[1664636013509,0.80673144,19313.0,19312.0,0.25898134]
[1664636013954,0.80673144,19313.0,19312.0,0.33798134]
[1664636015079,0.80673144,19313.0,19312.0,0.25898134]
[1664636016022,0.80673144,19313.0,19312.0,0.33798134]
[1664636016498,0.76355674,19315.0,19313.0,0.16103246]
[1664636016499,0.01607035,19315.0,19313.0,0.16103246]
[1664636016734,0.18213214,19318.0,19314.0,1.45374624]
[1664636016735,0.1012208,19318.0,19314.0,1.45374624]
[1664636016972,0.04049432,19320.0,19316.0,0.9]
[1664636017229,0.04049432,19320.0,19319.0,0.06103246]
[1664636017230,0.51173144,19320.0,19319.0,0.06103246]
[1664636017457,0.51173144,19320.0,19319.0,0.50343346]
[1664636017458,0.005,19320.0,19319.0,0.50343346]
[1664636017713,0.005,19320.0,19319.0,0.60343346]
[1664636017944,0.005,19320.0,19319.0,0.68243346]
[1664636018171,0.005,19320.0,19319.0,0.63243346]
[1664636018393,0.005,19320.0,19319.0,0.19003246]
[1664636018620,0.362893,19320.0,19319.0,0.14003246]
[1664636019091,0.005,19320.0,19319.0,0.06103246]
[1664636019320,0.305,19320.0,19319.0,0.06103246]
[1664636019835,0.305,19320.0,19319.0,0.079]
[1664636021286,0.305,19320.0,19319.0,0.06103246]
[1664636021525,0.305,19320.0,19318.0,0.258966]
[1664636021526,0.81673144,19320.0,19318.0,0.258966]
[1664636021747,0.495,19320.0,19318.0,0.258966]
[1664636021974,0.195,19320.0,19319.0,0.19003246]
[1664636023172,0.195,19320.0,19319.0,0.11103246]
[1664636023389,0.001,19321.0,19319.0,0.11103246]
[1664636023624,0.51273144,19321.0,19320.0,0.06103246]
[1664636024700,0.51273144,19321.0,19319.0,0.387954]
[1664636024921,0.51273144,19321.0,19319.0,0.830355]
[1664636025138,0.51273144,19321.0,19320.0,0.06103246]
[1664636025724,0.81273144,19321.0,19319.0,0.308954]
[1664636025949,0.51273144,19321.0,19320.0,0.079]
[1664636026126,0.81273144,19321.0,19320.0,0.079]
[1664636026354,0.51273144,19321.0,19320.0,0.079]
[1664636027562,0.81273144,19321.0,19319.0,0.258954]
[1664636028028,0.81273144,19321.0,19319.0,0.308954]
[1664636028498,0.51173144,19320.0,19319.0,0.258954]
[1664636028726,1.16962444,19320.0,19319.0,0.258954]
[1664636028933,0.81173144,19320.0,19319.0,0.258954]
[1664636029796,0.81173144,19320.0,19319.0,0.337954]
[1664636031170,0.81173144,19320.0,19319.0,0.258954]
[1664636031828,0.81173144,19320.0,19319.0,0.337954]
[1664636033113,0.81173144,19320.0,19319.0,0.258954]
[1664636033865,0.81173144,19320.0,19319.0,0.337954]
[1664636035255,0.81173144,19320.0,19319.0,0.308954]
[1664636035891,0.81173144,19320.0,19319.0,0.337954]
[1664636036345,0.81173144,19320.0,19319.0,0.387954]
[1664636036565,0.51173144,19320.0,19319.0,0.387954]
[1664636037445,0.51173144,19320.0,19319.0,0.337954]
[1664636037719,0.51173144,19320.0,19319.0,0.258954]
[1664636037956,0.51173144,19320.0,19319.0,0.337954]
[1664636038177,0.51173144,19320.0,19319.0,0.387954]
[1664636038613,0.51173144,19320.0,19319.0,0.437954]
[1664636038862,0.51173144,19320.0,19319.0,0.387954]
[1664636039284,0.51173144,19320.0,19319.0,0.308954]
[1664636039747,0.001,19321.0,19320.0,0.44470607]
[1664636039982,0.001,19321.0,19320.0,0.88710707]
[1664636040230,0.001,19321.0,19320.0,2.22080707]
[1664636040493,0.002,19322.0,19321.0,0.49470607]
[1664636040714,0.002,19322.0,19321.0,2.73817955]
[1664636040935,0.002,19322.0,19321.0,4.47817955]
[1664636041400,0.001,19327.0,19326.0,0.06103246]
[1664636041621,0.001,19327.0,19326.0,0.55343346]
[1664636041880,0.001,19327.0,19326.0,0.16103246]
[1664636042102,0.001,19327.0,19326.0,0.66143346]
[1664636042343,0.002,19328.0,19327.0,0.06103246]
[1664636042590,0.001,19330.0,19329.0,0.40023309]
[1664636042880,0.001,19330.0,19329.0,0.60343346]
[1664636043123,0.006,19330.0,19329.0,0.60343346]
[1664636043346,0.006,19330.0,19329.0,1.1151649]
[1664636043816,0.002,19332.0,19330.0,0.06103246]
[1664636044053,0.002,19332.0,19331.0,1.0151649]
[1664636044298,0.21412599,19336.0,19335.0,0.06103246]
[1664636044549,0.001,19337.0,19335.0,0.11103246]
[1664636044774,0.001,19337.0,19336.0,0.06103246]
[1664636045529,0.001,19337.0,19335.0,0.1]
[1664636045530,0.006,19337.0,19335.0,0.05]
[1664636045988,0.006,19337.0,19335.0,0.156]
[1664636046225,0.006,19337.0,19335.0,0.106]
[1664636046445,0.50366765,19337.0,19335.0,0.056]
[1664636046709,1.36202544,19336.0,19335.0,0.056]
[1664636046948,1.90612214,19336.0,19335.0,0.056]
[1664636047177,2.20612214,19336.0,19332.0,0.1]
[1664636047406,0.05,19333.0,19332.0,0.1]
[1664636047639,1.25413244,19333.0,19332.0,0.1]
[1664636047875,0.86962444,19333.0,19332.0,0.1]
[1664636048105,1.25413244,19333.0,19332.0,0.139]
[1664636048341,0.81173144,19333.0,19332.0,0.139]
[1664636048564,0.51173144,19333.0,19332.0,0.139]
[1664636048797,0.90714468,19333.0,19332.0,0.139]
[1664636049292,0.90714468,19333.0,19332.0,0.15]
[1664636049562,0.90714468,19333.0,19332.0,0.1]
[1664636049805,0.90714468,19333.0,19332.0,0.15]
[1664636050011,0.90714468,19333.0,19332.0,0.201]
[1664636050012,0.51173144,19333.0,19332.0,0.201]
[1664636051365,0.51173144,19333.0,19332.0,0.15]
[1664636051962,0.81173144,19333.0,19332.0,0.215]
[1664636052640,0.81173144,19333.0,19332.0,0.165]
[1664636052874,0.62864636,19336.0,19332.0,0.165]
[1664636052875,0.44549636,19336.0,19332.0,0.165]
[1664636053188,0.51173144,19335.0,19333.0,0.64790296]
[1664636053433,0.005,19335.0,19333.0,0.64790296]
[1664636053662,0.005,19335.0,19334.0,0.06103246]
[1664636055212,0.357893,19334.0,19333.0,0.388776]
[1664636055435,0.005,19335.0,19333.0,0.751177]
[1664636055667,0.6986378,19336.0,19333.0,0.308776]
[1664636056117,0.001,19337.0,19333.0,0.959489]
[1664636056118,0.005,19335.0,19333.0,0.959489]
[1664636056344,0.005,19335.0,19334.0,1.392401]
[1664636056569,0.005,19335.0,19334.0,4.37259724]
[1664636056790,0.005,19335.0,19334.0,4.42259724]
[1664636057302,0.005,19335.0,19334.0,4.93432868]
[1664636057510,0.005,19335.0,19334.0,4.03432868]